{"text_format":"1","workbook":"xlsx","n_sheets":6,"sheets":["様式第８号（第１面）","様式第８号（第２面）","様式第８号（第３面）","様式第８号（第４面）","マスタシート","使い方"],"not_rendered":{"charts":0,"images":0,"macros":1,"external_links":0,"defined_names":2,"comments":0,"pivot_tables":0},"unopened":[],"bounds":{"document_bytes":16777216,"sheet_cells":100000,"rows_first":2000,"rows_last":500,"rows_between":2000,"halvings":0,"cell_chars":16384,"cell_head_chars":4096},"cells_cut":0,"cells_raw":0,"read":"whole","date_system":"1900"}

{"sheet":"様式第８号（第１面）","index":0,"n_rows":54,"n_cols":25,"rows_kept":54,"cut":false,"hidden":false,"merged":[[12,3,12,4],[12,5,12,12],[12,13,12,16],[9,4,9,20],[0,0,0,24],[3,1,3,24],[4,1,4,24],[5,6,5,8],[8,4,8,20],[13,5,15,6],[13,7,13,12],[24,2,24,4],[14,9,14,10],[14,11,14,12],[15,2,15,3],[15,9,15,10],[15,11,15,12],[16,2,16,4],[17,2,17,4],[18,2,18,4],[19,2,19,4],[23,2,23,4],[14,7,15,8],[20,2,20,4],[21,2,21,4],[45,13,45,16],[28,3,28,4],[28,5,28,12],[28,13,28,16],[31,2,31,3],[32,2,32,4],[33,2,33,4],[29,11,31,12],[29,5,30,8],[31,5,31,6],[42,2,42,4],[34,2,34,4],[35,2,35,4],[39,2,39,4],[40,2,40,4],[41,2,41,4],[45,3,45,4],[45,5,47,8],[45,9,45,12],[29,9,31,10],[31,7,31,8],[46,11,47,12],[46,13,47,14],[46,15,47,16],[46,9,47,10],[47,2,47,3],[50,2,50,4],[48,2,48,4],[49,2,49,4],[48,5,48,6],[49,5,49,6],[50,5,50,6],[48,7,48,8],[49,7,49,8],[50,7,50,8],[51,2,51,4],[52,2,52,4],[53,2,53,4],[53,5,53,8],[51,5,51,6],[52,5,52,6],[51,7,51,8],[52,7,52,8],[45,17,45,20],[46,17,47,18],[45,21,45,24],[46,19,47,20],[46,21,46,24],[47,21,47,22],[47,23,47,24],[13,15,15,16],[13,21,15,22],[13,19,15,20],[13,17,15,18],[13,13,15,14],[22,2,22,4],[36,2,36,4],[37,2,37,4],[38,2,38,4],[29,13,30,16],[31,13,31,14],[31,15,31,16],[25,2,25,4],[26,2,26,4]]}
[]
[null,"様式第８号（第１面）"]
[null,null,null,null,null,null,null,null,null,null,null,null,null,null,null,null,null,null,null,null,null,null,null,null,"（日本産業規格Ａ列４）"]
[null,"有 料 職 業 紹 介 事 業 報 告 書"]
[null,"無 料 職 業 紹 介 事 業 報 告 書"]
[null,1,"許可番号"]
[]
[null,2,"事業所の名称及び所在地"]
[null,null,"（名称）"]
[null,null,"（所在地）"]
[null,3,"紹介予定派遣",null,null,null,null,null,"実績の有無"]
[null,4,"活動状況（国内）"]
[null,null,null,"項目",null,"①　　　求　　　　人",null,null,null,null,null,null,null,"②　　求　　職"]
[null,null,null,null,null,"有　効\n求人数",null,"求　人　数",null,null,null,null,null,"有効求\n職者数",null,"新規求職申込件数"]
[null,null,"取扱",null,null,null,null,"常　用\n求人数",null,"臨時求",null,"日雇求"]
[null,"r1","業務等の区分",null,null,null,null,null,null,"人延数",null,"人延数"]
[null,null,null,null,null,null,"人",null,"人",null,"人日",null,"人日",null,"人",null,"件"]
[null,null,null,null,null,null,"人",null,"人",null,"人日",null,"人日",null,"人",null,"件"]
[null,null,null,null,null,null,"人",null,"人",null,"人日",null,"人日",null,"人",null,"件"]
[null,null,null,null,null,null,"人",null,"人",null,"人日",null,"人日",null,"人",null,"件"]
[null,null,null,null,null,null,"人",null,"人",null,"人日",null,"人日",null,"人",null,"件"]
[null,null,null,null,null,null,"人",null,"人",null,"人日",null,"人日",null,"人",null,"件"]
[null,null,null,null,null,null,"人",null,"人",null,"人日",null,"人日",null,"人",null,"件"]
[null,null,null,null,null,null,"人",null,"人",null,"人日",null,"人日",null,"人",null,"件"]
[null,null,null,null,null,null,"人",null,"人",null,"人日",null,"人日",null,"人",null,"件"]
[null,null,null,null,null,null,"人",null,"人",null,"人日",null,"人日",null,"人",null,"件"]
[null,"r2","計",null,null,{"$f":"SUM(F17:F26)-SUMIF($C17:$C26,\"(紹介予定派遣)\",F17:F26)","v":0},"人",{"$f":"SUM(H17:H26)-SUMIF($C17:$C26,\"(紹介予定派遣)\",H17:H26)","v":0},"人",{"$f":"SUM(J17:J26)-SUMIF($C17:$C26,\"(紹介予定派遣)\",J17:J26)","v":0},"人日",{"$f":"SUM(L17:L26)-SUMIF($C17:$C26,\"(紹介予定派遣)\",L17:L26)","v":0},"人日",{"$f":"SUM(N17:N26)-SUMIF($C17:$C26,\"(紹介予定派遣)\",N17:N26)","v":0},"人",{"$f":"SUM(P17:P26)-SUMIF($C17:$C26,\"(紹介予定派遣)\",P17:P26)","v":0},"件",{"$f":"SUM(R17:R26)","v":0},null,{"$f":"SUM(T17:T26)","v":0}]
[]
[null,null,null,"項目",null,"③　　　就　　　　職",null,null,null,null,null,null,null,"④　　離　　職"]
[null,null,null,null,null,"常　　用\n就職件数",null,null,null,"臨　　時\n就職延数",null,"日　　雇\n就職延数",null,"無期雇用\n（6ヶ月以内／解雇除く）"]
[null,null,"取扱"]
[null,"r3","業務等の区分",null,null,"無期雇用",null,"それ以外",null,null,null,null,null,"離　職",null,"不　明"]
[null,null,{"$f":"IF(C17=\"\",\"\",C17)","v":""},null,null,null,"件",null,"件",null,"人日",null,"人日",null,"人",null,"人"]
[null,null,{"$f":"IF(C18=\"\",\"\",C18)","v":""},null,null,null,"件",null,"件",null,"人日",null,"人日",null,"人",null,"人"]
[null,null,"",null,null,null,"件",null,"件",null,"人日",null,"人日",null,"人",null,"人"]
[null,null,"",null,null,null,"件",null,"件",null,"人日",null,"人日",null,"人",null,"人"]
[null,null,"",null,null,null,"件",null,"件",null,"人日",null,"人日",null,"人",null,"人"]
[null,null,"",null,null,null,"件",null,"件",null,"人日",null,"人日",null,"人",null,"人"]
[null,null,"",null,null,null,"件",null,"件",null,"人日",null,"人日",null,"人",null,"人"]
[null,null,"",null,null,null,"件",null,"件",null,"人日",null,"人日",null,"人",null,"人"]
[null,null,"",null,null,null,"件",null,"件",null,"人日",null,"人日",null,"人",null,"人"]
[null,null,"",null,null,null,"件",null,"件",null,"人日",null,"人日",null,"人",null,"人"]
[null,"r4","計",null,null,{"$f":"SUM(F33:F42)-SUMIF($C33:$C42,\"(紹介予定派遣)\",F33:F42)","v":0},"件",{"$f":"SUM(H33:H42)-SUMIF($C33:$C42,\"(紹介予定派遣)\",H33:H42)","v":0},"件",{"$f":"SUM(J33:J42)-SUMIF($C33:$C42,\"(紹介予定派遣)\",J33:J42)","v":0},"人日",{"$f":"SUM(L33:L42)-SUMIF($C33:$C42,\"(紹介予定派遣)\",L33:L42)","v":0},"人日",{"$f":"SUM(N33:N42)-SUMIF($C33:$C42,\"(紹介予定派遣)\",N33:N42)","v":0},"人",{"$f":"SUM(P33:P42)-SUMIF($C33:$C42,\"(紹介予定派遣)\",P33:P42)","v":0},"人"]
[]
[null,5,"活動状況（国外）（相手国別・総計）"]
[null,null,null,"項目",null,"相手国",null,null,null,"⑤　求　人",null,null,null,"⑥　　求　　職",null,null,null,"⑦　就　職",null,null,null,"⑧　離　職"]
[null,null,"取扱",null,null,null,null,null,null,"有　効\n求人数",null,"求人数",null,"有効求\n職者数",null,"新規求職\n申込件数",null,"無期雇用\n就職件数",null,"それ以外の\n就職件数",null,"無期雇用\n（6ヶ月以内／解雇除く）"]
[null,"r5","業務等の区分",null,null,null,null,null,null,null,null,null,null,null,null,null,null,null,null,null,null,"離　職",null,"不　明"]
[null,null,null,null,null,null,null,null,null,null,"人",null,"人",null,"人",null,"件",null,"件",null,"件",null,"人",null,"人"]
[null,null,null,null,null,null,null,null,null,null,"人",null,"人",null,"人",null,"件",null,"件",null,"件",null,"人",null,"人"]
[null,null,null,null,null,null,null,null,null,null,"人",null,"人",null,"人",null,"件",null,"件",null,"件",null,"人",null,"人"]
[null,null,null,null,null,null,null,null,null,null,"人",null,"人",null,"人",null,"件",null,"件",null,"件",null,"人",null,"人"]
[null,null,null,null,null,null,null,null,null,null,"人",null,"人",null,"人",null,"件",null,"件",null,"件",null,"人",null,"人"]
[null,"r6","計",null,null,null,null,null,null,{"$f":"SUM(J49:J53)-SUMIF($C49:$C53,\"(紹介予定派遣)\",J49:J53)","v":0},"人",{"$f":"SUM(L49:L53)-SUMIF($C49:$C53,\"(紹介予定派遣)\",L49:L53)","v":0},"人",{"$f":"SUM(N49:N53)-SUMIF($C49:$C53,\"(紹介予定派遣)\",N49:N53)","v":0},"人",{"$f":"SUM(P49:P53)-SUMIF($C49:$C53,\"(紹介予定派遣)\",P49:P53)","v":0},"件",{"$f":"SUM(R49:R53)-SUMIF($C49:$C53,\"(紹介予定派遣)\",R49:R53)","v":0},"件",{"$f":"SUM(T49:T53)-SUMIF($C49:$C53,\"(紹介予定派遣)\",T49:T53)","v":0},"件",{"$f":"SUM(V49:V53)-SUMIF($C49:$C53,\"(紹介予定派遣)\",V49:V53)","v":0},"人",{"$f":"SUM(X49:X53)-SUMIF($C49:$C53,\"(紹介予定派遣)\",X49:X53)","v":0},"人"]

{"sheet":"様式第８号（第２面）","index":1,"n_rows":45,"n_cols":25,"rows_kept":45,"cut":false,"hidden":false,"merged":[[7,2,7,4],[0,0,0,24],[4,3,4,4],[4,5,4,10],[4,11,6,14],[4,15,4,20],[4,21,6,24],[5,5,5,10],[5,15,5,20],[6,2,6,3],[6,5,6,6],[6,7,6,8],[6,9,6,10],[6,15,6,16],[6,17,6,18],[6,19,6,20],[19,5,19,16],[8,2,8,4],[9,2,9,4],[10,2,10,4],[11,2,11,4],[12,2,12,4],[13,2,13,4],[22,2,22,4],[14,2,14,4],[15,2,15,4],[16,2,16,4],[17,2,17,4],[19,3,19,4],[20,5,20,16],[21,2,21,3],[21,5,21,8],[21,9,21,12],[21,13,21,16],[23,2,23,4],[24,2,24,4],[25,2,25,4],[26,2,26,4],[27,2,27,4],[30,7,31,7],[30,13,31,14],[34,2,34,4],[34,5,34,8],[34,9,34,24],[30,2,31,6],[30,15,30,24],[31,15,31,24],[35,2,35,4],[35,5,35,8],[35,9,35,24],[36,2,36,4],[36,5,36,8],[36,9,36,24],[37,2,37,4],[37,5,37,8],[37,9,37,24],[43,13,43,21],[44,11,44,12],[44,13,44,21]]}
[]
[null,"様式第８号（第２面）"]
[]
[null,6,"収入状況（国内・国外）"]
[null,null,null,"項目",null,"求人者（上限制）手数料",null,null,null,null,null,"求人受付手数料\n（別表）",null,null,null,"求人者（届出制）手数料",null,null,null,null,null,"求職受付手数料"]
[null,null,"取扱",null,null,"（職業安定法第32条の3第1項第1号の規定による手数料）",null,null,null,null,null,null,null,null,null,"（職業安定法第32条の3第１項第2号の規定による手数料）"]
[null,"r7","業務等の区分",null,null,"常用",null,"臨時",null,"日雇",null,null,null,null,null,"常用",null,"臨時",null,"日雇"]
[null,null,{"$f":"IF('様式第８号（第１面）'!C17=\"\",\"\",'様式第８号（第１面）'!C17)","v":""},null,null,null,"千円",null,"千円",null,"千円",null,"件",null,"千円",null,"千円",null,"千円",null,"千円",null,"件",null,"千円"]
[null,null,{"$f":"IF('様式第８号（第１面）'!C18=\"\",\"\",'様式第８号（第１面）'!C18)","v":""},null,null,null,"千円",null,"千円",null,"千円",null,"件",null,"千円",null,"千円",null,"千円",null,"千円",null,"件",null,"千円"]
[null,null,{"$f":"IF('様式第８号（第１面）'!C19=\"\",\"\",'様式第８号（第１面）'!C19)","v":""},null,null,null,"千円",null,"千円",null,"千円",null,"件",null,"千円",null,"千円",null,"千円",null,"千円",null,"件",null,"千円"]
[null,null,{"$f":"IF('様式第８号（第１面）'!C20=\"\",\"\",'様式第８号（第１面）'!C20)","v":""},null,null,null,"千円",null,"千円",null,"千円",null,"件",null,"千円",null,"千円",null,"千円",null,"千円",null,"件",null,"千円"]
[null,null,{"$f":"IF('様式第８号（第１面）'!C21=\"\",\"\",'様式第８号（第１面）'!C21)","v":""},null,null,null,"千円",null,"千円",null,"千円",null,"件",null,"千円",null,"千円",null,"千円",null,"千円",null,"件",null,"千円"]
[null,null,{"$f":"IF('様式第８号（第１面）'!C22=\"\",\"\",'様式第８号（第１面）'!C22)","v":""},null,null,null,"千円",null,"千円",null,"千円",null,"件",null,"千円",null,"千円",null,"千円",null,"千円",null,"件",null,"千円"]
[null,null,{"$f":"IF('様式第８号（第１面）'!C23=\"\",\"\",'様式第８号（第１面）'!C23)","v":""},null,null,null,"千円",null,"千円",null,"千円",null,"件",null,"千円",null,"千円",null,"千円",null,"千円",null,"件",null,"千円"]
[null,null,{"$f":"IF('様式第８号（第１面）'!C24=\"\",\"\",'様式第８号（第１面）'!C24)","v":""},null,null,null,"千円",null,"千円",null,"千円",null,"件",null,"千円",null,"千円",null,"千円",null,"千円",null,"件",null,"千円"]
[null,null,{"$f":"IF('様式第８号（第１面）'!C25=\"\",\"\",'様式第８号（第１面）'!C25)","v":""},null,null,null,"千円",null,"千円",null,"千円",null,"件",null,"千円",null,"千円",null,"千円",null,"千円",null,"件",null,"千円"]
[null,null,{"$f":"IF('様式第８号（第１面）'!C26=\"\",\"\",'様式第８号（第１面）'!C26)","v":""},null,null,null,"千円",null,"千円",null,"千円",null,"件",null,"千円",null,"千円",null,"千円",null,"千円",null,"件",null,"千円"]
[null,"r8","計",null,null,{"$f":"SUM(F8:F17)-SUMIF($C8:$C17,\"(紹介予定派遣)\",F8:F17)","v":0},"千円",{"$f":"SUM(H8:H17)-SUMIF($C8:$C17,\"(紹介予定派遣)\",H8:H17)","v":0},"千円",{"$f":"SUM(J8:J17)-SUMIF($C8:$C17,\"(紹介予定派遣)\",J8:J17)","v":0},"千円",{"$f":"SUM(L8:L17)-SUMIF($C8:$C17,\"(紹介予定派遣)\",L8:L17)","v":0},"件",{"$f":"SUM(N8:N17)-SUMIF($C8:$C17,\"(紹介予定派遣)\",N8:N17)","v":0},"千円",{"$f":"SUM(P8:P17)-SUMIF($C8:$C17,\"(紹介予定派遣)\",P8:P17)","v":0},"千円",{"$f":"SUM(R8:R17)-SUMIF($C8:$C17,\"(紹介予定派遣)\",R8:R17)","v":0},"千円",{"$f":"SUM(T8:T17)-SUMIF($C8:$C17,\"(紹介予定派遣)\",T8:T17)","v":0},"千円",{"$f":"SUM(V8:V17)-SUMIF($C8:$C17,\"(紹介予定派遣)\",V8:V17)","v":0},"件",{"$f":"SUM(X8:X17)-SUMIF($C8:$C17,\"(紹介予定派遣)\",X8:X17)","v":0},"千円"]
[]
[null,null,null,"項目",null,"求職者手数料"]
[null,null,"取扱",null,null,"（職業安定法第32条の3第2項の規定による手数料）"]
[null,null,"業務等の区分",null,null,"常用",null,null,null,"臨時",null,null,null,"日雇"]
[null,null,"芸能家",null,null,null,"件",null,"千円",null,"件",null,"千円",null,"件",null,"千円"]
[null,null,"モデル",null,null,null,"件",null,"千円",null,"件",null,"千円",null,"件",null,"千円"]
[null,null,"科学技術者",null,null,null,"件",null,"千円",null,"件",null,"千円",null,"件",null,"千円"]
[null,null,"経営管理者",null,null,null,"件",null,"千円",null,"件",null,"千円",null,"件",null,"千円"]
[null,null,"熟練技能者",null,null,null,"件",null,"千円",null,"件",null,"千円",null,"件",null,"千円"]
[null,null,"計",null,null,{"$f":"SUM(F23:F27)","v":0},"件",{"$f":"SUM(H23:H27)","v":0},"千円",{"$f":"SUM(J23:J27)","v":0},"件",{"$f":"SUM(L23:L27)","v":0},"千円",{"$f":"SUM(N23:N27)","v":0},"件",{"$f":"SUM(P23:P27)","v":0},"千円"]
[]
[null,7,"職業紹介の業務に従事する者の数",null,null,null,null,null,null,null,null,null,8,"返戻金制度"]
[null,null,null,null,null,null,null,"人",null,null,null,null,null,"有・無",null,"（有の場合、その概要）"]
[]
[]
[null,9,"従業員教育"]
[null,null,"日時",null,null,"従業員数",null,null,null,"教育内容"]
[]
[]
[]
[]
[null,null,"１　職業安定法第32条の16第１項の規定により上記のとおり報告します。"]
[null,null,"２　職業安定法第33条第４項において準用する同法第32条の16第１項の規定により上記のとおり報告します。"]
[]
[null,null,null,null,"令和",null,"年",null,"月",null,"日"]
[]
[null,null,null,"厚生労働大臣　殿",null,null,null,null,null,null,"⑨","氏名又は名称"]

{"sheet":"様式第８号（第３面）","index":2,"n_rows":4,"n_cols":3,"rows_kept":4,"cut":false,"hidden":false,"merged":[[0,0,0,12],[2,1,2,12],[3,2,66,13]]}
["様式第８号（第３面）"]
[]
[null,"記載要領"]
[null,null,"１　職業紹介を行う事業所ごとに別紙で記載することとし、職業紹介事業者を管轄する都道府県\n　　労働局にまとめて提出すること。                                    \n　２　対象期間については、前年の４月１日から３月末日まで（４④欄にあっては前々年の４月１\n　　日から前年の３月末日まで）とすること。\n　３　１には、許可番号を記載すること。\n  ４　３には、対象期間における紹介予定派遣に係る実績の有無を記載すること。\n　５　活動状況（国内）\n   (1)  ４①の「求人数」及び４③欄には、「取扱業務等の区分」ごとに、１箇年における求人及\n　　　び就職数について、「常用」（４③欄にあっては無期雇用」、「それ以外」）、「臨時」、\n　　「日雇」の区分ごとに記載することとし、常用についてはその人（件）数、臨時及び日雇につ\n　　　いてはその延数（人日）を記載すること。３において「有」と記載した場合は「取扱業務等\n　　　の区分」の欄に区分ごとに括弧書きで紹介予定派遣に係る状況を記載すること（以下、(2)\n　　　から(5)まで及び７において同じ。）。\n   (2)  ４①の「有効求人数」、②の「有効求職者数」欄には、それぞれその３月末における有効\n　　　求人数、有効求職者数を記載すること。\n　 (3)　４②の「新規求職申込件数」欄には、「取扱業務等の区分」ごとに対象期間中に新たに求\n　　　職申込みのあった件数を記載すること。\n　 (4)　４④の「離職」欄には、前々年の４月１日から前年の３月末日までの間に就職した者（期\n　　　間の定めのない労働契約を締結した者に限る。以下「無期雇用就職者」という。）のうち、\n　　　就職後６ヶ月以内に離職した者の数を、④の「不明」欄には、無期雇用就職者のうち、就職\n　　　後６ヶ月以内に離職したかどうか明らかでない者の数を記載すること。\n　 (5)　４欄において、「常用」とは、４ヵ月以上の期間を定めて雇用される者又は期間の定めな\n　　　く雇用される者をいい、「臨時」とは、１ヵ月以上４ヵ月未満の期間を定めて雇用される者\n　　　をいい、「日雇」とは、１ヵ月未満の期間を定めて雇用される者をいう。なお、雇用の予定\n　　　期間は、雇用の開始年月日から雇用契約の期間の終了する年月日までの日数とし、雇用の予\n　　　定期間内に休日があっても雇用が継続する場合は、すべて通算するものとすること。ただし、\n　　　断続的な就労の場合は日雇とすること。\n　６　活動状況（国外）\n　 (1)　５⑤の「求人数」及び⑦欄には、「取扱業務等の区分」ごとに、１箇年における求人、期\n　　　間の定めのない労働契約を締結して就職した人（件）数、それ以外の就職人（件）数を記載\n　　　すること。\n   (2)  ５⑤の「有効求人数」及び⑥の「有効求職者数」欄には、それぞれその３月末における有\n　　　効求人数、有効求職数を記載すること。⑥の「新規求職申込件数」欄には、「取扱業務等の\n　　　区分」ごとに対象期間中に新たに求職申込みのあった件数を記載すること。\n　 (3)　５⑧の「離職」欄には、無期雇用就職者のうち、就職後６ヶ月以内に離職した者の数を、\n　　　５⑧の「不明」欄には、無期雇用就職者のうち、就職後６ヶ月以内に離職したかどうか明ら\n　　　かでない者の数を記載すること。\n"]

{"sheet":"様式第８号（第４面）","index":3,"n_rows":68,"n_cols":3,"rows_kept":68,"cut":false,"hidden":false,"merged":[[0,0,0,12],[2,1,2,12],[3,2,66,13]]}
["様式第８号（第４面）"]
[]
[]
[null,null,"　７　６の収入状況には、「常用」、「臨時」、「日雇」の区分及び「取扱業務等の区分」ごとに、対象\n　　期間内における全ての手数料収入について記載すること。\n    　また、芸能家、モデル、科学技術者、経営管理者及び熟練技能者に係る手数料については、求\n　　人者手数料（職業安定法第32条の３第１項第１号及び第２号の規定による手数料）又は求職者手数料（職業安定法\n　　第32条の３第２項の規定による手数料）にそれぞれ別に記載すること。\n　８　⑨欄には、氏名（法人又は団体にあってはその名称及び代表者の氏名）を記載すること。\n　９　その紹介により就職した者のうち第二種特別加入保険料（労働者災害補償保険法施行規則第46条の18第５号の作\n　　業に従事する者に対する保険料）に充てるべき手数料を徴収した場合は、手数料管理簿の写しを本報告書に添えて\n　　提出すること。\n１０　７の「職業紹介の業務に従事する者の数」欄には、当該職業紹介を行う事業所に係る３月末に\n    おける職業紹介の業務に従事する者の数を記載すること。\n１１　８の「返戻金制度」欄には、返戻金制度（その紹介により就職した者が早期に離職したことその他これに準ずる\n　　理由があった場合に、当該者を紹介した雇用主から徴収すべき手数料の全部又\n　　は一部を返戻する制度その他これに準ずる制度）の有無を記載すること。また、返戻金制度を設けている場合に　　　\n　　は、その概要を記載すること。\n\n\n\n\n\n\n\n\n\n\n\n\n\n\n\n\n\n\n\n\n\n\n\n\n\n\n"]
[]
[]
[]
[]
[]
[]
[]
[]
[]
[]
[]
[]
[]
[]
[]
[]
[]
[]
[]
[]
[]
[]
[]
[]
[]
[]
[]
[]
[]
[]
[]
[]
[]
[]
[]
[]
[]
[]
[]
[]
[]
[]
[]
[]
[]
[]
[]
[]
[]
[]
[]
[]
[]
[]
[]
[]
[]
[]
[]
[]
[]
[]
[]
[null,null,"　"]

{"sheet":"マスタシート","index":4,"n_rows":85,"n_cols":11,"rows_kept":85,"cut":false,"hidden":true,"merged":[]}
["001芸能家",null,null,null,"001","芸能家",null,null,null,null,"国名"]
["002家政婦（夫）",null,null,null,"002","家政婦（夫）",null,null,null,null,"中国"]
["003配ぜん人",null,null,null,"003","配ぜん人",null,null,null,null,"韓国"]
["004調理師",null,null,null,"004","調理師",null,null,null,null,"ベトナム"]
["005モデル",null,null,null,"005","モデル",null,null,null,null,"ミャンマー"]
["006マネキン",null,null,null,"006","マネキン",null,null,null,null,"インドネシア"]
["007技能実習生",null,null,null,"007","技能実習生",null,null,null,null,"フィリピン"]
["008医師",null,null,null,"008","医師",null,null,null,null,"マレーシア"]
["009看護師",null,null,null,"009","看護師",null,null,null,null,"台湾"]
["010保育士",null,null,null,"010","保育士",null,null,null,null,"カンボジア"]
["011特定技能の在留資格に係る職業紹介",null,null,null,"01","管理的公務員",null,null,null,null,"タイ"]
["01管理的公務員",null,null,null,"02","法人・団体の役員"]
["02法人・団体の役員",null,null,null,"03","法人・団体の管理職員"]
["03法人・団体の管理職員",null,null,null,"04","その他の管理的職業"]
["04その他の管理的職業",null,null,null,"05","研究者"]
["05研究者",null,null,null,"06","農林水産技術者"]
["06農林水産技術者",null,null,null,"07","開発技術者"]
["07開発技術者",null,null,null,"08","製造技術者"]
["08製造技術者",null,null,null,"09","建築・土木・測量技術者"]
["09建築・土木・測量技術者",null,null,null,"10","情報処理・通信技術者"]
["10情報処理・通信技術者",null,null,null,"11","その他の技術者"]
["11その他の技術者",null,null,null,"12","医師、歯科医師、獣医師、薬剤師"]
["12医師、歯科医師、獣医師、薬剤師",null,null,null,"13","保健師、助産師、看護師"]
["13保健師、助産師、看護師",null,null,null,"14","医療技術者"]
["14医療技術者",null,null,null,"15","その他の保健医療の職業"]
["15その他の保健医療の職業",null,null,null,"16","社会福祉の専門的職業"]
["16社会福祉の専門的職業",null,null,null,"17","法務の職業"]
["17法務の職業",null,null,null,"18","経営・金融・保険の専門的職業"]
["18経営・金融・保険の専門的職業",null,null,null,"19","教育の職業"]
["19教育の職業",null,null,null,"20","宗教家"]
["20宗教家",null,null,null,"21","著述家、記者、編集者"]
["21著述家、記者、編集者",null,null,null,"22","美術家、デザイナー、写真家、映像撮影者"]
["22美術家、デザイナー、写真家、映像撮影者",null,null,null,"23","音楽家、舞台芸術家"]
["23音楽家、舞台芸術家",null,null,null,"24","その他の専門的職業"]
["24その他の専門的職業",null,null,null,"25","一般事務の職業"]
["25一般事務の職業",null,null,null,"26","会計事務の職業"]
["26会計事務の職業",null,null,null,"27","生産関連事務の職業"]
["27生産関連事務の職業",null,null,null,"28","営業・販売関連事務の職業"]
["28営業・販売関連事務の職業",null,null,null,"29","外勤事務の職業"]
["29外勤事務の職業",null,null,null,"30","運輸・郵便事務の職業"]
["30運輸・郵便事務の職業",null,null,null,"31","事務用機器操作の職業"]
["31事務用機器操作の職業",null,null,null,"32","商品販売の職業"]
["32商品販売の職業",null,null,null,"33","販売類似の職業"]
["33販売類似の職業",null,null,null,"34","営業の職業"]
["34営業の職業",null,null,null,"35","家庭生活支援サービスの職業"]
["35家庭生活支援サービスの職業",null,null,null,"36","介護サービスの職業"]
["36介護サービスの職業",null,null,null,"37","保健医療サービスの職業"]
["37保健医療サービスの職業",null,null,null,"38","生活衛生サービスの職業"]
["38生活衛生サービスの職業",null,null,null,"39","飲食物調理の職業"]
["39飲食物調理の職業",null,null,null,"40","接客・給仕の職業"]
["40接客・給仕の職業",null,null,null,"41","居住施設・ビル等の管理の職業"]
["41居住施設・ビル等の管理の職業",null,null,null,"42","その他のサービスの職業"]
["42その他のサービスの職業",null,null,null,"43","自衛官"]
["43自衛官",null,null,null,"44","司法警察職員"]
["44司法警察職員",null,null,null,"45","その他の保安の職業"]
["45その他の保安の職業",null,null,null,"46","農業の職業"]
["46農業の職業",null,null,null,"47","林業の職業"]
["47林業の職業",null,null,null,"48","漁業の職業"]
["48漁業の職業",null,null,null,"49","生産設備制御・監視の職業（金属材料製造、金属加工、金属溶接・溶断）"]
["49生産設備制御・監視の職業（金属材料製造、金属加工、金属溶接・溶断）",null,null,null,"50","生産設備制御・監視の職業（金属材料製造、金属加工、金属溶接・溶断を除く）"]
["50生産設備制御・監視の職業（金属材料製造、金属加工、金属溶接・溶断を除く）",null,null,null,"51","生産設備制御・監視の職業（機械組立）"]
["51生産設備制御・監視の職業（機械組立）",null,null,null,"52","金属材料製造、金属加工、金属溶接・溶断の職業"]
["52金属材料製造、金属加工、金属溶接・溶断の職業",null,null,null,"54","製品製造・加工処理の職業（金属材料製造、金属加工、金属溶接・溶断を除く）"]
["54製品製造・加工処理の職業（金属材料製造、金属加工、金属溶接・溶断を除く）",null,null,null,"57","機械組立の職業"]
["57機械組立の職業",null,null,null,"60","機械整備・修理の職業"]
["60機械整備・修理の職業",null,null,null,"61","製品検査の職業（金属材料製造、金属加工、金属溶接・溶断）"]
["61製品検査の職業（金属材料製造、金属加工、金属溶接・溶断）",null,null,null,"62","製品検査の職業（金属材料製造、金属加工、金属溶接・溶断を除く）"]
["62製品検査の職業（金属材料製造、金属加工、金属溶接・溶断を除く）",null,null,null,"63","機械検査の職業"]
["63機械検査の職業",null,null,null,"64","生産関連・生産類似の職業"]
["64生産関連・生産類似の職業",null,null,null,"65","鉄道運転の職業"]
["65鉄道運転の職業",null,null,null,"66","自動車運転の職業"]
["66自動車運転の職業",null,null,null,"67","船舶・航空機運転の職業"]
["67船舶・航空機運転の職業",null,null,null,"68","その他の輸送の職業"]
["68その他の輸送の職業",null,null,null,"69","定置・建設機械運転の職業"]
["69定置・建設機械運転の職業",null,null,null,"70","建設躯体工事の職業"]
["70建設躯体工事の職業",null,null,null,"71","建設の職業（建設躯体工事の職業を除く）"]
["71建設の職業（建設躯体工事の職業を除く）",null,null,null,"72","電気工事の職業"]
["72電気工事の職業",null,null,null,"73","土木の職業"]
["73土木の職業",null,null,null,"74","採掘の職業"]
["74採掘の職業",null,null,null,"75","運搬の職業"]
["75運搬の職業",null,null,null,"76","清掃の職業"]
["76清掃の職業",null,null,null,"77","包装の職業"]
["77包装の職業",null,null,null,"78","その他の運搬・清掃・包装等の職業"]
["78その他の運搬・清掃・包装等の職業"]
["(紹介予定派遣)"]

{"sheet":"使い方","index":5,"n_rows":7,"n_cols":1,"rows_kept":7,"cut":false,"hidden":false,"merged":[]}
["このファイルには入力の効率化、入力内容の簡易なチェックを行うための機能が組み込まれています。"]
["第3面、第4面に記載されていることに加えて、以下の内容についてもご留意の上、記載をお願いします。"]
[]
["・第1面「4活動状況（国内）」、「5活動状況（国外）」、第2面「6収入状況（国内・国外）」の行を追加する場合は、本シートの「行追加」ボタンをクリックしてください。逆に行を削除する場合は「行削除」ボタンをクリックしてください。"]
["・第1面「5活動状況（国外）」の「相手国」欄左側には取扱の多い国名をプルダウンで選べるようにプリセットされています。"]
["・第1面「5活動状況（国外）」の「相手国」欄左側に存在しない国名を入力する場合は右側に直接入力してください。"]
["・必要な欄の入力を終えたら、本シートの「チェック」ボタンをクリックしてください。"]